[Event "360 One Wealth GP-3 2024"]
[Site "Mumbai"]
[Date "2024.02.06"]
[Round "2.6"]
[White "Tanmay Sanjay More"]
[Black "Kherdekar Arnav"]
[Result "1/2-1/2"]
[ECO "B07"]
[WhiteElo "1156"]
[BlackElo "1693"]
[Annotator "NA RC"]
[PlyCount "138"]
[EventDate "2024.02.04"]
[EventType "swiss"]
[EventCountry "IND"]
[SourceTitle "playchess.com"]
[Source "ChessBase"]
[SourceQuality "1"]
[TimeControl "5400+30"]

1. e4 {[%emt 0:00:04]} d6 {[%emt 0:02:55]} 2. d4 {[%emt 0:00:11]} Nf6 {[%emt 0:00:06]} 3. Nc3 {[%emt 0:00:06]} c6 {[%emt 0:00:06]} 4. Nf3 {[%emt 0:00:33]} Bg4 {[%emt 0:00:08]} 5. Be2 {[%emt 0:00:23]} e6 {[%emt 0:00:09]} 6. Bg5 {[%emt 0:01:02]} Be7 {[%emt 0:00:07]} 7. e5 {[%emt 0:04:27]} Nfd7 {[%emt 0:04:25]} 8. Bxe7 {[%emt 0:00:31]} Qxe7 {[%emt 0:00:06]} 9. exd6 {[%emt 0:06:25]} Qxd6 {[%emt 0:00:16]} 10. O-O {[%emt 0:00:53]} Nf6 {[%emt 0:01:59]} 11. Re1 {[%emt 0:02:26]} O-O {[%emt 0:00:42]} 12. Ne5 {[%emt 0:05:48]} Bf5 {[%emt 0:00:10]} 13. Bd3 {[%emt 0:00:08]} Bxd3 {[%emt 0:02:07]} 14. Qxd3 {[%emt 0:00:17]} Rd8 {[%emt 0:00:16]} 15. Rad1 {[%emt 0:00:55]} Nbd7 {[%emt 0:04:18]} 16. Ne4 {[%emt 0:03:48]} Nxe4 {[%emt 0:03:57]} 17. Rxe4 {[%emt 0:02:02]} Nf8 {[%emt 0:01:10]} 18. h3 {[%emt 0:14:26]} Qd5 {[%emt 0:03:15]} 19. c4 {[%emt 0:04:28]} Qa5 {[%emt 0:00:19]} 20. Qb3 {[%emt 0:00:10]} Rab8 {[%emt 0:03:41]} 21. c5 {[%emt 0:02:17]} Qc7 {[%emt 0:02:23]} 22. Qa4 {[%emt 0:06:02]} f6 {[%emt 0:00:48]} 23. Nf3 {[%emt 0:01:22]} Ra8 {[%emt 0:02:41]} 24. Qb3 {[%emt 0:01:08]} Rd5 {[%emt 0:00:14]} 25. Ree1 {[%emt 0:01:20]} Rad8 {[%emt 0:00:19]} 26. Qc2 {[%emt 0:03:15]} Qd7 {[%emt 0:01:52]} 27. Re2 {[%emt 0:02:25]} Ng6 {[%emt 0:02:19]} 28. Qe4 {[%emt 0:01:11]} Rxc5 {[%emt 0:02:04]} 29. Qxe6+ {[%emt 0:00:52]} Qxe6 {[%emt 0:00:02]} 30. Rxe6 {[%emt 0:00:03]} Rc2 {[%emt 0:00:36]} 31. Rb1 {[%emt 0:00:59]} Kf7 {[%emt 0:00:39]} 32. Re3 {[%emt 0:02:55]} Nf4 {[%emt 0:01:16]} 33. Rb3 {[%emt 0:02:05]} Rd7 {[%emt 0:01:08]} 34. Kf1 {[%emt 0:00:43]} Ke8 {[%emt 0:06:41]} 35. Rc3 {[%emt 0:03:35]} Rxc3 {[%emt 0:00:57]} 36. bxc3 {[%emt 0:00:05]} Nd5 {[%emt 0:00:47]} 37. Rb3 {[%emt 0:00:53]} Re7 {[%emt 0:00:46]} 38. Nd2 {[%emt 0:01:32]} Nb6 {[%emt 0:00:20]} 39. c4 {[%emt 0:01:23]} Rd7 {[%emt 0:00:56]} 40. Ke2 {[%emt 0:01:16]} Rxd4 {[%emt 0:03:33]} 41. c5 {[%emt 0:00:03]} Na4 {[%emt 0:00:13]} 42. Rxb7 {[%emt 0:00:34]} Rd7 {[%emt 0:00:08]} 43. Rb8+ {[%emt 0:06:07]} Kf7 {[%emt 0:00:08]} 44. Rc8 {[%emt 0:00:31]} Nxc5 {[%emt 0:04:56]} 45. Rxc6 {[%emt 0:00:22]} Ne6 {[%emt 0:00:01]} 46. Nb3 {[%emt 0:01:29]} Nf4+ {[%emt 0:00:32]} 47. Kf3 {[%emt 0:00:26]} Nd3 {[%emt 0:01:46]} 48. Rc3 {[%emt 0:00:50]} Nb4 {[%emt 0:00:55]} 49. a3 {[%emt 0:00:53]} Nd3 {[%emt 0:00:02]} 50. Ke2 {[%emt 0:06:36]} Nf4+ {[%emt 0:00:23]} 51. Kf3 {[%emt 0:00:03]} g5 {[%emt 0:00:06]} 52. Nc5 {[%emt 0:01:06]} Re7 {[%emt 0:00:29]} 53. Ne4 {[%emt 0:00:44]} Kg6 {[%emt 0:01:10]} 54. Rc6 {[%emt 0:00:24]} Ne6 {[%emt 0:00:35]} 55. Ra6 {[%emt 0:01:23]} Kg7 {[%emt 0:05:28]} 56. Nd6 {[%emt 0:00:54]} Nd4+ {[%emt 0:01:39]} 57. Kg3 {[%emt 0:00:27]} Kg6 {[%emt 0:01:40]} 58. Nc8 {[%emt 0:01:14]} Nf5+ {[%emt 0:02:43]} 59. Kh2 {[%emt 0:01:11]} Re8 {[%emt 0:02:13]} 60. Nxa7 {[%emt 0:00:55]} Re2 {[%emt 0:00:10]} 61. g4 {[%emt 0:00:34]} Ne3 {[%emt 0:02:05]} 62. Kg3 {[%emt 0:00:17]} Nd1 {[%emt 0:00:23]} 63. Nc6 {[%emt 0:00:42]} Nxf2 {[%emt 0:01:04]} 64. Nd4 {[%emt 0:01:32]} Nh1+ {[%emt 0:01:06]} 65. Kf3 {[%emt 0:00:07]} Rf2+ {[%emt 0:00:01]} 66. Ke3 {[%emt 0:00:10]} Rh2 {[%emt 0:00:06]} 67. Kf3 {[%emt 0:00:31]} Rf2+ {[%emt 0:03:06]} 68. Ke3 {[%emt 0:02:16]} Rh2 {[%emt 0:01:10]} 69. Kf3 {[%emt 0:00:11]} Rf2+ {[%emt 0:01:02]} 1/2-1/2

[Event "360 One Wealth GP-3 2024"]
[Site "Mumbai"]
[Date "2024.02.06"]
[Round "2.8"]
[White "Mayanka Rakesh Rana"]
[Black "Bhawsar, Ashwath"]
[Result "1-0"]
[ECO "B08"]
[WhiteElo "1136"]
[BlackElo "1663"]
[Annotator "NA RC"]
[PlyCount "137"]
[EventDate "2024.02.04"]
[EventType "swiss"]
[EventCountry "IND"]
[SourceTitle "playchess.com"]
[Source "ChessBase"]
[SourceQuality "1"]
[TimeControl "5400+30"]

1. d4 {[%emt 0:00:02]} Nf6 {[%emt 0:00:17]} 2. Nf3 {[%emt 0:00:02]} g6 {[%emt 0:00:31]} 3. Nc3 {[%emt 0:01:22]} Bg7 {[%emt 0:00:20]} 4. e4 {[%emt 0:00:52]} d6 {[%emt 0:00:12]} 5. Be3 {[%emt 0:01:08]} O-O {[%emt 0:00:31]} 6. Be2 {[%emt 0:01:18]} Nbd7 {[%emt 0:02:42]} 7. Qd2 {[%emt 0:03:04]} c6 {[%emt 0:01:54]} 8. Bh6 {[%emt 0:04:40]} b5 {[%emt 0:03:17]} 9. a3 {[%emt 0:01:41]} Bb7 {[%emt 0:05:40]} 10. Bxg7 {[%emt 0:02:44]} Kxg7 {[%emt 0:00:10]} 11. e5 {[%emt 0:07:14]} Ne8 {[%emt 0:09:05]} 12. h4 {[%emt 0:05:25]} h5 {[%emt 0:04:45]} 13. Qf4 {[%emt 0:09:06]} dxe5 {[%emt 0:11:21]} 14. dxe5 {[%emt 0:01:39]} Nc7 {[%emt 0:06:47]} 15. Ng5 {[%emt 0:03:15]} Nc5 {[%emt 0:03:25]} 16. Rd1 {[%emt 0:03:44]} N7e6 {[%emt 0:09:16]} 17. Qe3 {[%emt 0:06:14]} Qc7 {[%emt 0:04:49]} 18. g4 {[%emt 0:02:36]} Nxg5 {[%emt 0:17:57]} 19. Qxg5 {[%emt 0:03:09]} Ne6 {[%emt 0:00:50]} 20. Qe3 {[%emt 0:00:31]} hxg4 {[%emt 0:06:36]} 21. Bxg4 {[%emt 0:01:30]} Rh8 {[%emt 0:06:31]} 22. Bxe6 {[%emt 0:00:55]} fxe6 {[%emt 0:00:18]} 23. Qg3 {[%emt 0:04:26]} Raf8 {[%emt 0:02:06]} 24. Rg1 {[%emt 0:01:02]} Rh6 {[%emt 0:00:50]} 25. h5 {[%emt 0:00:29]} Rf5 {[%emt 0:00:42]} 26. hxg6 {[%emt 0:01:07]} Qxe5+ {[%emt 0:00:25]} 27. Kf1 {[%emt 0:02:23]} Qxg3 {[%emt 0:00:46]} 28. Rxg3 {[%emt 0:00:05]} Rh1+ {[%emt 0:01:20]} 29. Rg1 {[%emt 0:01:20]} Rxg1+ {[%emt 0:00:33]} 30. Kxg1 {[%emt 0:00:02]} Bc8 {[%emt 0:00:37]} 31. Rd8 {[%emt 0:01:47]} Rf8 {[%emt 0:00:25]} 32. Rxf8 {[%emt 0:00:02]} Kxf8 {[%emt 0:00:08]} 33. Ne2 {[%emt 0:00:37]} Kg7 {[%emt 0:00:24]} 34. Nf4 {[%emt 0:00:14]} Bd7 {[%emt 0:00:38]} 35. Kg2 {[%emt 0:00:22]} Kf6 {[%emt 0:00:33]} 36. Kg3 {[%emt 0:00:43]} Be8 {[%emt 0:00:27]} 37. g7 {[%emt 0:00:14]} Bf7 {[%emt 0:00:34]} 38. Nh5+ {[%emt 0:00:37]} Kg5 {[%emt 0:00:40]} 39. Nf4 {[%emt 0:00:23]} Kh6 {[%emt 0:00:17]} 40. g8=Q {[%emt 0:00:23]} Bxg8 {[%emt 0:00:11]} 41. Nd3 {[%emt 0:00:58]} Bh7 {[%emt 0:00:39]} 42. Ne5 {[%emt 0:00:08]} c5 {[%emt 0:00:44]} 43. c3 {[%emt 0:00:33]} Be4 {[%emt 0:00:25]} 44. Nd7 {[%emt 0:00:55]} c4 {[%emt 0:00:27]} 45. Nc5 {[%emt 0:00:19]} Bd5 {[%emt 0:00:19]} 46. Kf4 {[%emt 0:00:08]} Kg6 {[%emt 0:01:03]} 47. Ke5 {[%emt 0:00:13]} Kf7 {[%emt 0:00:21]} 48. Na6 {[%emt 0:00:22]} Bf3 {[%emt 0:00:44]} 49. Nc7 {[%emt 0:00:22]} Bc6 {[%emt 0:00:36]} 50. Nxe6 {[%emt 0:00:16]} Ke8 {[%emt 0:00:41]} 51. Nd4 {[%emt 0:00:15]} Bd7 {[%emt 0:00:25]} 52. Kd5 {[%emt 0:00:12]} a6 {[%emt 0:00:42]} 53. Kc5 {[%emt 0:00:10]} Bc8 {[%emt 0:00:21]} 54. Nc6 {[%emt 0:01:08]} Kd7 {[%emt 0:00:15]} 55. Kb6 {[%emt 0:00:09]} Kd6 {[%emt 0:00:22]} 56. Nb8 {[%emt 0:01:58]} Ke5 {[%emt 0:00:32]} 57. Nxa6 {[%emt 0:01:12]} Ke4 {[%emt 0:00:49]} 58. Nb4 {[%emt 0:00:36]} Bd7 {[%emt 0:00:21]} 59. Kc7 {[%emt 0:00:10]} Bg4 {[%emt 0:00:52]} 60. Kc6 {[%emt 0:00:22]} e5 {[%emt 0:00:21]} 61. Kxb5 {[%emt 0:01:21]} Kf3 {[%emt 0:00:24]} 62. Kxc4 {[%emt 0:00:13]} e4 {[%emt 0:00:19]} 63. Kd4 {[%emt 0:00:40]} Bf5 {[%emt 0:00:18]} 64. Nc2 {[%emt 0:00:15]} Kxf2 {[%emt 0:00:17]} 65. Ne3 {[%emt 0:00:31]} Bg6 {[%emt 0:00:33]} 66. a4 {[%emt 0:00:19]} Kf3 {[%emt 0:00:41]} 67. a5 {[%emt 0:00:11]} Be8 {[%emt 0:00:15]} 68. a6 {[%emt 0:00:20]} Bc6 {[%emt 0:00:13]} 69. b4 {[%emt 0:00:06]} 1-0

[Event "360 One Wealth GP-3 2024"]
[Site "Mumbai"]
[Date "2024.02.06"]
[Round "2.9"]
[White "Kapadi Yash"]
[Black "Polekar Atharva"]
[Result "1-0"]
[ECO "E06"]
[WhiteElo "1626"]
[BlackElo "1136"]
[Annotator "NA RC"]
[PlyCount "49"]
[EventDate "2024.02.04"]
[EventType "swiss"]
[EventCountry "IND"]
[SourceTitle "playchess.com"]
[Source "ChessBase"]
[SourceQuality "1"]
[TimeControl "5400+30"]

1. Nf3 {[%emt 0:00:19]} Nc6 {[%emt 0:00:16]} 2. d4 {[%emt 0:00:14]} d5 {[%emt 0:00:15]} 3. c4 {[%emt 0:04:05]} e6 {[%emt 0:01:19]} 4. g3 {[%emt 0:01:07]} Nf6 {[%emt 0:00:31]} 5. Bg2 {[%emt 0:00:08]} Be7 {[%emt 0:01:35]} 6. O-O {[%emt 0:00:11]} O-O {[%emt 0:00:08]} 7. b3 {[%emt 0:05:41]} b6 {[%emt 0:02:57]} 8. Nc3 {[%emt 0:02:01]} Bb7 {[%emt 0:01:15]} 9. Bf4 {[%emt 0:05:41]} dxc4 {[%emt 0:04:27]} 10. Ne5 {[%emt 0:09:25]} Nd5 {[%emt 0:02:19]} 11. Nxd5 {[%emt 0:08:38]} exd5 {[%emt 0:00:18]} 12. bxc4 {[%emt 0:13:16]} Nxe5 {[%emt 0:23:39]} 13. dxe5 {[%emt 0:00:50]} c6 {[%emt 0:01:20]} 14. cxd5 {[%emt 0:00:41]} cxd5 {[%emt 0:00:18]} 15. Qa4 {[%emt 0:06:36]} Bg5 {[%emt 0:02:22]} 16. Rfd1 {[%emt 0:01:56]} Bxf4 {[%emt 0:00:48]} 17. Qxf4 {[%emt 0:00:21]} Qd7 {[%emt 0:01:40]} 18. Bxd5 {[%emt 0:06:32]} Bxd5 {[%emt 0:00:37]} 19. e4 {[%emt 0:00:03]} Qb5 {[%emt 0:01:52]} 20. exd5 {[%emt 0:04:22]} Rfe8 {[%emt 0:01:12]} 21. a4 {[%emt 0:05:54]} Qa5 {[%emt 0:01:01]} 22. Rac1 {[%emt 0:00:16]} Rac8 {[%emt 0:01:26]} 23. e6 {[%emt 0:03:24]} fxe6 {[%emt 0:00:28]} 24. dxe6 {[%emt 0:00:03]} Rxc1 {[%emt 0:00:44]} 25. Qf7+ {[%emt 0:00:06]} 1-0

[Event "360 One Wealth GP-3 2024"]
[Site "Mumbai"]
[Date "2024.02.06"]
[Round "2.10"]
[White "Avi Chugh"]
[Black "Joglekar, Abhijit"]
[Result "1/2-1/2"]
[ECO "B22"]
[WhiteElo "1126"]
[BlackElo "1502"]
[Annotator "NA RC"]
[PlyCount "150"]
[EventDate "2024.02.04"]
[EventType "swiss"]
[EventCountry "IND"]
[SourceTitle "playchess.com"]
[Source "ChessBase"]
[SourceQuality "1"]
[TimeControl "5400+30"]

1. e4 {[%emt 0:00:03]} c5 {[%emt 0:02:23]} 2. d4 {[%emt 0:00:16]} cxd4 {[%emt 0:00:06]} 3. c3 {[%emt 0:00:11]} d5 {[%emt 0:00:42]} 4. exd5 {[%emt 0:00:56]} Qxd5 {[%emt 0:00:08]} 5. cxd4 {[%emt 0:14:27]} Nc6 {[%emt 0:01:15]} 6. Nf3 {[%emt 0:01:12]} Bg4 {[%emt 0:03:17]} 7. Nc3 {[%emt 0:01:36]} Qd8 {[%emt 0:10:45]} 8. Bb5 {[%emt 0:05:54]} e6 {[%emt 0:05:35]} 9. O-O {[%emt 0:01:52]} Nf6 {[%emt 0:04:39]} 10. Re1 {[%emt 0:00:43]} Be7 {[%emt 0:01:12]} 11. Bf4 {[%emt 0:18:44]} O-O {[%emt 0:06:19]} 12. Bxc6 {[%emt 0:00:52]} bxc6 {[%emt 0:00:02]} 13. Be5 {[%emt 0:01:32]} Qb6 {[%emt 0:04:14]} 14. b3 {[%emt 0:03:13]} Rfd8 {[%emt 0:02:14]} 15. Re3 {[%emt 0:03:02]} Nd5 {[%emt 0:04:39]} 16. Nxd5 {[%emt 0:03:54]} Rxd5 {[%emt 0:00:18]} 17. h3 {[%emt 0:02:27]} Bh5 {[%emt 0:01:06]} 18. Qc2 {[%emt 0:01:42]} Rc8 {[%emt 0:06:25]} 19. Rc1 {[%emt 0:04:26]} Ba3 {[%emt 0:01:20]} 20. Rce1 {[%emt 0:02:07]} Bg6 {[%emt 0:01:21]} 21. Qe2 {[%emt 0:01:34]} Bb4 {[%emt 0:01:49]} 22. Rc1 {[%emt 0:01:08]} Qa5 {[%emt 0:06:38]} 23. Rc4 {[%emt 0:03:46]} h6 {[%emt 0:02:34]} 24. Nh4 {[%emt 0:02:23]} Bh7 {[%emt 0:03:16]} 25. Rg3 {[%emt 0:01:13]} Bf8 {[%emt 0:00:35]} 26. Qe3 {[%emt 0:01:37]} Kh8 {[%emt 0:01:17]} 27. Qf4 {[%emt 0:04:22]} Rd7 {[%emt 0:07:33]} 28. b4 {[%emt 0:04:47]} Qd5 {[%emt 0:09:51]} 29. Qxh6 {[%emt 0:03:59]} Qxe5 {[%emt 0:09:53]} 30. Qxh7+ {[%emt 0:00:22]} Kxh7 {[%emt 0:00:02]} 31. dxe5 {[%emt 0:00:13]} Rd1+ {[%emt 0:00:06]} 32. Kh2 {[%emt 0:00:17]} Rd2 {[%emt 0:00:03]} 33. Rf4 {[%emt 0:01:33]} Kg8 {[%emt 0:00:25]} 34. a3 {[%emt 0:01:09]} Rcd8 {[%emt 0:00:32]} 35. Rgf3 {[%emt 0:05:59]} R8d7 {[%emt 0:02:39]} 36. Rg4 {[%emt 0:00:51]} R2d5 {[%emt 0:00:47]} 37. Re3 {[%emt 0:01:10]} Rd3 {[%emt 0:00:36]} 38. Rgg3 {[%emt 0:00:25]} Rd2 {[%emt 0:00:28]} 39. Rgf3 {[%emt 0:00:56]} g5 {[%emt 0:01:55]} 40. Rg3 {[%emt 0:00:23]} Be7 {[%emt 0:00:28]} 41. Nf3 {[%emt 0:00:29]} Rxf2 {[%emt 0:00:12]} 42. Nxg5 {[%emt 0:00:12]} Bxg5 {[%emt 0:00:21]} 43. Rxg5+ {[%emt 0:00:07]} Kf8 {[%emt 0:00:09]} 44. Rc3 {[%emt 0:00:29]} Ra2 {[%emt 0:00:34]} 45. Rgg3 {[%emt 0:00:21]} Rd5 {[%emt 0:00:14]} 46. Rge3 {[%emt 0:00:18]} Rdd2 {[%emt 0:00:25]} 47. Rg3 {[%emt 0:00:10]} Rd5 {[%emt 0:01:13]} 48. Rg5 {[%emt 0:00:31]} f6 {[%emt 0:00:42]} 49. Rf3 {[%emt 0:00:28]} f5 {[%emt 0:00:19]} 50. Re3 {[%emt 0:00:40]} a5 {[%emt 0:00:15]} 51. bxa5 {[%emt 0:00:51]} Rxa5 {[%emt 0:00:02]} 52. Rgg3 {[%emt 0:00:23]} Ke7 {[%emt 0:00:20]} 53. Rgf3 {[%emt 0:01:18]} Ra4 {[%emt 0:00:33]} 54. Rc3 {[%emt 0:00:29]} Re4 {[%emt 0:00:48]} 55. Rfe3 {[%emt 0:00:43]} Rxe3 {[%emt 0:00:30]} 56. Rxe3 {[%emt 0:00:07]} Kf7 {[%emt 0:00:21]} 57. h4 {[%emt 0:00:21]} Kg6 {[%emt 0:00:13]} 58. Kg3 {[%emt 0:02:17]} Rc2 {[%emt 0:00:14]} 59. Kf3 {[%emt 0:00:41]} Rc4 {[%emt 0:00:10]} 60. g3 {[%emt 0:00:44]} Ra4 {[%emt 0:01:19]} 61. Kg2 {[%emt 0:00:56]} c5 {[%emt 0:01:25]} 62. Rc3 {[%emt 0:00:39]} c4 {[%emt 0:00:40]} 63. Kf3 {[%emt 0:00:19]} Kh5 {[%emt 0:00:14]} 64. Kf4 {[%emt 0:00:16]} Kg6 {[%emt 0:00:48]} 65. g4 {[%emt 0:00:07]} fxg4 {[%emt 0:00:06]} 66. Kxg4 {[%emt 0:00:06]} Kh6 {[%emt 0:00:24]} 67. h5 {[%emt 0:00:29]} Ra5 {[%emt 0:00:09]} 68. Rxc4 {[%emt 0:01:36]} Rxa3 {[%emt 0:01:35]} 69. Rc6 {[%emt 0:00:39]} Ra4+ {[%emt 0:00:07]} 70. Kf3 {[%emt 0:00:13]} Kxh5 {[%emt 0:00:20]} 71. Rxe6 {[%emt 0:00:10]} Kg5 {[%emt 0:00:19]} 72. Re8 {[%emt 0:00:10]} Kf5 {[%emt 0:00:13]} 73. Ke3 {[%emt 0:00:15]} Re4+ {[%emt 0:01:40]} 74. Kd3 {[%emt 0:00:06]} Rxe5 {[%emt 0:00:07]} 75. Rxe5+ {[%emt 0:00:06]} Kxe5 {[%emt 0:00:01]} 1/2-1/2

[Event "360 One Wealth GP-3 2024"]
[Site "Mumbai"]
[Date "2024.02.06"]
[Round "2.11"]
[White "Kush Ajay Agarwal"]
[Black "Santosh Shantaram Deorukhkar"]
[Result "1-0"]
[ECO "C54"]
[WhiteElo "1458"]
[BlackElo "1065"]
[Annotator "NA RC"]
[PlyCount "77"]
[EventDate "2024.02.04"]
[EventType "swiss"]
[EventCountry "IND"]
[SourceTitle "playchess.com"]
[Source "ChessBase"]
[SourceQuality "1"]
[TimeControl "5400+30"]

1. e4 {[%emt 0:00:02]} e5 {[%emt 0:00:09]} 2. Nf3 {[%emt 0:00:36]} Nc6 {[%emt 0:00:21]} 3. Bc4 {[%emt 0:00:24]} Bc5 {[%emt 0:00:24]} 4. c3 {[%emt 0:00:07]} Nf6 {[%emt 0:02:19]} 5. d3 {[%emt 0:00:20]} d6 {[%emt 0:00:27]} 6. Nbd2 {[%emt 0:00:16]} Be6 {[%emt 0:01:39]} 7. Bb5 {[%emt 0:00:18]} a6 {[%emt 0:00:56]} 8. Ba4 {[%emt 0:00:20]} h6 {[%emt 0:01:06]} 9. d4 {[%emt 0:01:12]} b5 {[%emt 0:04:31]} 10. dxc5 {[%emt 0:00:43]} bxa4 {[%emt 0:01:56]} 11. Qxa4 {[%emt 0:00:25]} Qd7 {[%emt 0:00:51]} 12. cxd6 {[%emt 0:00:27]} cxd6 {[%emt 0:00:58]} 13. Nc4 {[%emt 0:00:49]} Qc7 {[%emt 0:02:20]} 14. b3 {[%emt 0:06:17]} Nxe4 {[%emt 0:01:59]} 15. Ncxe5 {[%emt 0:01:24]} Nxc3 {[%emt 0:02:03]} 16. Qxc6+ {[%emt 0:00:16]} Qxc6 {[%emt 0:05:41]} 17. Nxc6 {[%emt 0:00:18]} O-O {[%emt 0:01:18]} 18. O-O {[%emt 0:01:06]} Bg4 {[%emt 0:04:08]} 19. Ncd4 {[%emt 0:00:33]} Rfe8 {[%emt 0:01:20]} 20. Bb2 {[%emt 0:00:42]} Ne2+ {[%emt 0:02:03]} 21. Nxe2 {[%emt 0:00:26]} Rxe2 {[%emt 0:00:34]} 22. Ba3 {[%emt 0:00:16]} Bxf3 {[%emt 0:01:26]} 23. gxf3 {[%emt 0:00:02]} d5 {[%emt 0:00:47]} 24. Rfe1 {[%emt 0:00:02]} Re6 {[%emt 0:01:12]} 25. Rxe6 {[%emt 0:00:34]} fxe6 {[%emt 0:00:13]} 26. Bc5 {[%emt 0:00:12]} Re8 {[%emt 0:02:54]} 27. Rd1 {[%emt 0:00:12]} Kf7 {[%emt 0:00:43]} 28. Kg2 {[%emt 0:01:24]} Kf6 {[%emt 0:00:53]} 29. f4 {[%emt 0:00:15]} Rc8 {[%emt 0:03:13]} 30. b4 {[%emt 0:00:01]} Kf5 {[%emt 0:00:55]} 31. Kf3 {[%emt 0:00:14]} g5 {[%emt 0:00:27]} 32. fxg5 {[%emt 0:01:23]} hxg5 {[%emt 0:00:22]} 33. Rd4 {[%emt 0:00:23]} Rd8 {[%emt 0:00:58]} 34. Rg4 {[%emt 0:02:18]} e5 {[%emt 0:01:43]} 35. Rxg5+ {[%emt 0:00:53]} Kxg5 {[%emt 0:02:30]} 36. Be7+ {[%emt 0:00:01]} Kf5 {[%emt 0:00:15]} 37. Bxd8 {[%emt 0:00:04]} d4 {[%emt 0:00:28]} 38. Bb6 {[%emt 0:00:16]} e4+ {[%emt 0:02:38]} 39. Ke2 {[%emt 0:00:36]} 1-0

[Event "360 One Wealth GP-3 2024"]
[Site "Mumbai"]
[Date "2024.02.06"]
[Round "2.12"]
[White "Chakraborty Aryan"]
[Black "Ishaan A Tendolkar"]
[Result "0-1"]
[ECO "E58"]
[WhiteElo "1137"]
[BlackElo "1451"]
[Annotator "NA RC"]
[PlyCount "46"]
[EventDate "2024.02.04"]
[EventType "swiss"]
[EventCountry "IND"]
[SourceTitle "playchess.com"]
[Source "ChessBase"]
[SourceQuality "1"]
[TimeControl "5400+30"]

1. d4 {[%emt 0:00:04]} Nf6 {[%emt 0:00:16]} 2. c4 {[%emt 0:00:39]} e6 {[%emt 0:00:04]} 3. Nc3 {[%emt 0:00:05]} Bb4 {[%emt 0:00:03]} 4. e3 {[%emt 0:00:06]} O-O {[%emt 0:00:21]} 5. Bd3 {[%emt 0:00:03]} c5 {[%emt 0:00:32]} 6. Nf3 {[%emt 0:00:05]} Nc6 {[%emt 0:00:14]} 7. a3 {[%emt 0:00:35]} Bxc3+ {[%emt 0:00:17]} 8. bxc3 {[%emt 0:00:06]} d5 {[%emt 0:01:04]} 9. O-O {[%emt 0:01:11]} Re8 {[%emt 0:04:06]} 10. Ne5 {[%emt 0:33:34]} Nxe5 {[%emt 0:01:00]} 11. dxe5 {[%emt 0:00:07]} dxc4 {[%emt 0:01:36]} 12. Bxc4 {[%emt 0:00:59]} Nd5 {[%emt 0:00:23]} 13. f4 {[%emt 0:22:09]} b6 {[%emt 0:01:59]} 14. Rf3 {[%emt 0:02:18]} Bb7 {[%emt 0:00:52]} 15. Rh3 {[%emt 0:00:15]} Nc7 {[%emt 0:04:24]} 16. Qh5 {[%emt 0:01:23]} Be4 {[%emt 0:00:07]} 17. Be2 {[%emt 0:12:17]} Bg6 {[%emt 0:02:32]} 18. Qf3 {[%emt 0:01:28]} Qd5 {[%emt 0:00:14]} 19. Qf2 {[%emt 0:02:11]} Rad8 {[%emt 0:00:35]} 20. c4 {[%emt 0:02:10]} Qe4 {[%emt 0:00:52]} 21. g4 {[%emt 0:05:50]} Qc2 {[%emt 0:04:37]} 22. Rg3 {[%emt 0:04:03]} Qc3 {[%emt 0:00:00]} 23. Ra2 {[%emt 0:00:19]} Qxc1+ {[%emt 0:00:38]} 0-1

[Event "360 One Wealth GP-3 2024"]
[Site "Mumbai"]
[Date "2024.02.06"]
[Round "2.13"]
[White "Soni Deepak R"]
[Black "Hiranmayee Kulkarni"]
[Result "1-0"]
[ECO "D00"]
[WhiteElo "1445"]
[BlackElo "1059"]
[Annotator "NA RC"]
[PlyCount "31"]
[EventDate "2024.02.04"]
[EventType "swiss"]
[EventCountry "IND"]
[SourceTitle "playchess.com"]
[Source "ChessBase"]
[SourceQuality "1"]
[TimeControl "5400+30"]

1. d4 {[%emt 0:26:02]} d5 {[%emt 0:00:12]} 2. Bf4 {[%emt 0:00:19]} e6 {[%emt 0:00:16]} 3. e3 {[%emt 0:00:41]} Nf6 {[%emt 0:00:15]} 4. Nd2 {[%emt 0:00:17]} Bd6 {[%emt 0:00:15]} 5. Bg3 {[%emt 0:00:09]} c5 {[%emt 0:00:15]} 6. c3 {[%emt 0:00:12]} b6 {[%emt 0:00:35]} 7. Bb5+ {[%emt 0:01:08]} Kf8 {[%emt 0:02:02]} 8. Ngf3 {[%emt 0:03:57]} g6 {[%emt 0:02:05]} 9. Ne5 {[%emt 0:03:06]} Kg7 {[%emt 0:01:36]} 10. Qf3 {[%emt 0:03:45]} h6 {[%emt 0:03:59]} 11. Ndc4 {[%emt 0:09:22]} Bxe5 {[%emt 0:02:45]} 12. Bxe5 {[%emt 0:02:36]} a6 {[%emt 0:01:38]} 13. Nxb6 {[%emt 0:01:35]} Qxb6 {[%emt 0:07:49]} 14. Qxf6+ {[%emt 0:00:09]} Kf8 {[%emt 0:04:57]} 15. Qxh8+ {[%emt 0:00:06]} Ke7 {[%emt 0:00:14]} 16. Qe8# {[%emt 0:00:04]} 1-0

[Event "360 One Wealth GP-3 2024"]
[Site "Mumbai"]
[Date "2024.02.06"]
[Round "2.14"]
[White "Shah Jash Divyang"]
[Black "Pawar Sohum"]
[Result "1/2-1/2"]
[ECO "B57"]
[WhiteElo "1088"]
[BlackElo "1442"]
[Annotator "NA RC"]
[PlyCount "89"]
[EventDate "2024.02.04"]
[EventType "swiss"]
[EventCountry "IND"]
[SourceTitle "playchess.com"]
[Source "ChessBase"]
[SourceQuality "1"]
[TimeControl "5400+30"]

1. e4 c5 {[%emt 0:08:01]} 2. Nf3 d6 {[%emt 0:00:23]} 3. d4 {[%emt 0:00:16]} cxd4 {[%emt 0:00:02]} 4. Nxd4 {[%emt 0:00:09]} Nf6 {[%emt 0:00:04]} 5. Nc3 {[%emt 0:00:12]} Nc6 {[%emt 0:00:11]} 6. Nb3 {[%emt 0:01:14]} e5 {[%emt 0:03:13]} 7. Bc4 {[%emt 0:01:45]} h6 {[%emt 0:01:47]} 8. f3 {[%emt 0:01:18]} Be7 {[%emt 0:00:51]} 9. Be3 {[%emt 0:01:34]} a5 {[%emt 0:02:25]} 10. Na4 {[%emt 0:10:18]} Be6 {[%emt 0:05:01]} 11. Bxe6 {[%emt 0:03:03]} fxe6 {[%emt 0:00:03]} 12. Qe2 {[%emt 0:08:02]} O-O {[%emt 0:01:11]} 13. O-O {[%emt 0:01:37]} d5 {[%emt 0:05:08]} 14. Rad1 {[%emt 0:02:46]} Qe8 {[%emt 0:01:46]} 15. Nbc5 {[%emt 0:03:49]} Bxc5 {[%emt 0:00:47]} 16. Bxc5 {[%emt 0:00:59]} Nd4 {[%emt 0:05:58]} 17. Rxd4 {[%emt 0:11:26]} exd4 {[%emt 0:00:12]} 18. Bxf8 {[%emt 0:00:11]} Qxa4 {[%emt 0:00:26]} 19. Ba3 {[%emt 0:07:02]} dxe4 {[%emt 0:01:11]} 20. fxe4 {[%emt 0:01:12]} Qc6 {[%emt 0:05:31]} 21. e5 {[%emt 0:04:43]} Nd5 {[%emt 0:00:38]} 22. Qf2 {[%emt 0:03:17]} Ne3 {[%emt 0:00:51]} 23. Qf7+ {[%emt 0:02:49]} Kh7 {[%emt 0:00:03]} 24. Rf2 {[%emt 0:00:19]} Nxc2 {[%emt 0:04:23]} 25. Bf8 {[%emt 0:03:03]} Rxf8 {[%emt 0:00:02]} 26. Qxf8 {[%emt 0:00:20]} Ne3 {[%emt 0:00:43]} 27. h3 {[%emt 0:01:52]} Qc1+ {[%emt 0:02:18]} 28. Kh2 {[%emt 0:00:52]} d3 {[%emt 0:04:02]} 29. Rf7 {[%emt 0:05:37]} Nf5 {[%emt 0:00:42]} 30. Rxf5 {[%emt 0:01:27]} exf5 {[%emt 0:01:14]} 31. Qxf5+ {[%emt 0:00:17]} Kg8 {[%emt 0:00:03]} 32. Qxd3 {[%emt 0:04:17]} Qxb2 {[%emt 0:00:13]} 33. Qd8+ {[%emt 0:02:11]} Kf7 {[%emt 0:01:02]} 34. Qd7+ {[%emt 0:02:00]} Kf8 {[%emt 0:00:58]} 35. e6 {[%emt 0:03:23]} Qe5+ {[%emt 0:00:03]} 36. Kg1 {[%emt 0:00:11]} Qe1+ {[%emt 0:00:12]} 37. Kh2 {[%emt 0:00:07]} Qe5+ {[%emt 0:00:05]} 38. Kg1 {[%emt 0:00:08]} Qe3+ {[%emt 0:02:16]} 39. Kh1 {[%emt 0:02:02]} Qc1+ {[%emt 0:00:20]} 40. Kh2 {[%emt 0:00:16]} Qf4+ {[%emt 0:00:04]} 41. Kg1 {[%emt 0:00:33]} Qe3+ {[%emt 0:00:47]} 42. Kh1 {[%emt 0:00:27]} Qf4 {[%emt 0:00:12]} 43. Kg1 {[%emt 0:00:01]} Qf6 44. Qxb7 {[%emt 0:00:01]} Qxe6 {[%emt 0:00:01]} 45. Qa8+ {[%emt 0:00:02]} 1/2-1/2